Cogmind - Beta 10.2 @@@ ROGUE MODE // 2021.08.24 @ 18:02:44 Player: EgoOrb Result: Destroyed by S-10 Pest with Light Assault Rifle Performance ------------- Evolutions (1) 500 Regions Visited (3) 600 Robots Destroyed (38) 190 Value Destroyed (1067) 1067 Prototype IDs (1) 20 Alien Tech Used (0) 0 Bonus (0) 0 TOTAL SCORE: 2377 Bonus ------- None Cogmind --------- Core Integrity 0/400 Matter 18/300 Energy 100/100 System Corruption 0% Temperature Cool (0) Movement Core (700) Ox13 Location -9/Storage Parts ------- > --- POWER (2) -------- (None) > --- PROPULSION (3) --- (None) > --- UTILITY (2) ------ High-capacity Storage Unit Signal Interpreter > --- WEAPON (2) ------- Mini Assault Cannon Mini Assault Cannon > --- INVENTORY (12) --- Visual Processing Unit Signal Interpreter Mini Assault Cannon Mini Assault Cannon Mini Assault Cannon Mini Assault Cannon Peak State ------------ > --- POWER ------------ (None) > --- PROPULSION ------- Compact Wheel > --- UTILITY ---------- High-capacity Storage Unit > --- WEAPON ----------- Mini Assault Cannon Mini Assault Cannon > --- INVENTORY -------- Visual Processing Unit Signal Interpreter Signal Interpreter Mini Assault Cannon Mini Assault Cannon Mini Assault Cannon Mini Assault Cannon [Rating: 14] Favorites ----------- Power Light Ion Engine Engine Light Ion Engine Propulsion Aluminum Leg Treads Light Treads Leg Aluminum Leg Wheel Compact Wheel Utility High-capacity Storage Unit Storage High-capacity Storage Unit Processor Improved Targeting Computer Weapon Rocket Launcher Energy Gun EM Pulse Gun Ballistic Gun Light Assault Rifle Ballistic Cannon Light Cannon Launcher Rocket Launcher Special Weapon Welding Torch Build | -11 -10 -9 -9 ------- Run | Scr Mat Mat Sto Slots Evolved 2 | . . 2 . Power 1 | . . 1 . Propulsion 1 | . . 1 . Utility . | . . . . Weapon . | . . . . Parts Attached 37 | 6 4 10 17 Power 5 | 1 1 2 1 Engine 5 | 1 1 2 1 Core . | . . . . Reactor . | . . . . Propulsion 13 | 2 . 3 8 Treads 3 | . . 2 1 Leg 8 | 2 . . 6 Wheel 2 | . . 1 1 Hover . | . . . . Flight . | . . . . Utility 6 | 1 1 2 2 Device . | . . . . Storage 4 | 1 1 1 1 Processor 2 | . . 1 1 Hackware . | . . . . Protection . | . . . . Artifact . | . . . . Weapon 13 | 2 2 3 6 Energy Gun 3 | 1 1 1 . Energy Cannon . | . . . . Ballistic Gun 2 | 1 . . 1 Ballistic Cannon 4 | . . . 4 Launcher 2 | . . 2 . Special Weapon 2 | . 1 . 1 Impact Weapon . | . . . . Slashing Weapon . | . . . . Piercing Weapon . | . . . . Special Melee Weapon . | . . . . Unidentified Prototypes 1 | . . . 1 Parts Lost 25 | . 4 2 19 Power 5 | . 1 1 3 Propulsion 9 | . . . 9 Utility 1 | . . . 1 Weapon 10 | . 3 1 6 Highest Loss Streak 14 | . 4 1 14 Average Slot Usage (%) 84 | . 93 87 76 Engine 17 | . 13 21 14 Treads 11 | . . 21 5 Leg 12 | . 28 . 15 Storage 18 | . 25 13 17 Processor 4 | . . 8 2 Energy Gun 7 | . 13 9 1 Ballistic Gun 2 | . 11 . . Ballistic Cannon 4 | . . . 14 Launcher 5 | . . 11 2 Naked Turns . | . . . . Heaviest Build 57 | 10 42 55 57 Greatest Support 40 | 20 20 40 40 Greatest Overweight (x) 13 | 3 2 1 13 Average Overweight (x) 1 | . 1 1 1 Largest Inventory Capacity 14 | 6 14 14 14 Average Capacity 12 | 5 12 12 13 Most Carried 11 | 6 9 11 11 Average Carried 7 | 2 7 8 7 Final Capacity 14 | 6 14 12 12 Final Carried 9 | 6 7 9 6 Class Distribution -------------------- 85% | Mutant 14% | Scavenger-Mutant Dominant Class ---------------- Mutant | -10/Materials Mutant | -9/Materials Mutant | -9/Storage Resources | -11 -10 -9 -9 ----------- Run | Scr Mat Mat Sto Matter Collected 728 | 141 163 210 214 Remotely . | . . . . Salvage Created 894 | . 172 297 425 Parts 59 | . 7 17 35 Haulers Intercepted . | . . . . Recyclers Shooed 1 | . . . 1 Parts Field Recycled . | . . . . Retrieved Matter . | . . . . Parts Self-Destructed . | . . . . Prevented . | . . . . Kills | -11 -10 -9 -9 ------- Run | Scr Mat Mat Sto Combat Hostiles Destroyed 31 | . 6 8 17 Melee 1 | . . 1 . Guns 10 | . 6 3 1 Cannons 14 | . . . 14 AOE 6 | . . 4 2 Classes Destroyed 7 | . 2 3 2 Worker 1 | . . . 1 Builder 3 | . . . 3 Watcher 3 | . . 1 2 Swarmer 6 | . 3 . 3 Grunt 20 | . 3 4 13 Brawler 2 | . . 2 . Sentry 3 | . . 2 1 Best Kill Streak 6 | . 3 3 6 Combat Bots Only 5 | . 3 3 5 Max Kills in Single Turn 2 | . 1 1 2 Gunslinging . | . . . . Exploded 2 | . . 1 2 Melee 1 | . . 1 . Uniques/NPCs Destroyed . | . . . . Combat | -11 -10 -9 -9 -------- Run | Scr Mat Mat Sto Damage Taken 2789 | . 543 427 1819 Core 488 | . 82 51 355 Absorbed by Shields . | . . . . Core Remaining (%) 83 | 100 67 . . Volleys Fired 110 | . 25 22 63 Largest 2 | . 2 2 2 Hottest 120 | . 120 89 96 Shots Fired 169 | . 45 32 92 Gun 70 | . 43 19 8 Cannon 77 | . . . 77 Launcher 20 | . . 13 7 Special 2 | . 2 . . Kinetic 105 | . 24 . 81 Thermal 26 | . 15 7 4 Explosive 20 | . . 13 7 Electromagnetic 18 | . 6 12 . Robot Hit Streak 17 | . 5 6 17 Robot Miss Streak 5 | . 5 3 3 Penetration Max . | . . . . Secondary Targets . | . . . . Shots Hit Robots 95 | . 22 16 57 Core Hits 61 | . 12 17 32 Critical Hits 2 | . . . 2 Critical Kills . | . . . . Critical Parts Destroyed 2 | . . . 2 Melee Attacks . | . . . . Impact . | . . . . Slashing . | . . . . Piercing . | . . . . Sneak Attacks . | . . . . Combat Hostiles . | . . . . Follow-up Attacks . | . . . . Damage Inflicted 2255 | . 244 647 1364 Guns 478 | . 220 194 64 Cannons 1015 | . . . 1015 Explosions 700 | . . 423 277 Melee . | . . . . Ramming 38 | . . 30 8 Kinetic 1163 | . 113 . 1050 Thermal 223 | . 121 73 29 Explosive 700 | . . 423 277 Electromagnetic 131 | . 10 121 . Impact . | . . . . Slashing . | . . . . Piercing . | . . . . Highest Corruption 1 | . 1 . . Average Corruption 1 | . 1 . . Corruption Purged . | . . . . Overload Shots . | . . . . Overflow Damage 58 | . . 6 52 Projectiles 44 | . . . 44 Explosions 14 | . . 6 8 Melee . | . . . . Knockbacks 15 | . . . 15 Impact . | . . . . Kinetic 12 | . . . 12 Secondary 3 | . . . 3 Self-Inflicted Damage 200 | . . 126 74 Shots 6 | . . 4 2 Rammed 6 | . . 6 . Targets Rammed 8 | . . 7 1 Kicked 1 | . . . 1 Crushed 1 | . . 1 . Highest Temperature 189 | . 77 105 189 Average Temperature 46 | . 30 36 56 Received Heat Transfer 954 | . 72 144 738 Siege Activations . | . . . . Robots Corrupted . | . . . . Combat Hostiles . | . . . . Parts Fried . | . . . . Impact Corruptions . | . . . . Robots Melted . | . . . . Combat Hostiles . | . . . . Parts Melted . | . . . . Heat Transferred 605 | . 346 185 74 Parts Sabotaged . | . . . . Parts Stolen . | . . . . Parts Stripped . | . . . . Power Chain Reactions . | . . . . Missiles Intercepted . | . . . . Alert | -11 -10 -9 -9 ------- Run | Scr Mat Mat Sto Peak Influence 383 | . 115 255 383 Initial 69 | . . 48 69 Average 133 | . 53 123 230 Maximum Alert Level 1 | . . 1 1 Low Security (%) 76 | 100 100 82 49 Level 1 23 | . . 17 50 Level 2 . | . . . . Level 3 . | . . . . Level 4 . | . . . . Level 5 . | . . . . High Security . | . . . . Max Security . | . . . . Squads Dispatched 8 | . . 1 7 Investigation 1 | . . . 1 Extermination . | . . . . Reinforcement 3 | . . 1 2 Assault . | . . . . Garrison 4 | . . . 4 Intercept . | . . . . Construction Impeded 1 | . . . 1 Haulers Reinforced . | . . . . Stealth | -11 -10 -9 -9 --------- Run | Scr Mat Mat Sto Distress Signals 5 | . . . 5 Communications Jammed . | . . . . Distress Signals . | . . . . Times Spotted 50 | . 9 18 23 Peak Tracking Total 6 | . 4 5 6 Tactical Retreats 4 | . 1 2 1 Traps | -11 -10 -9 -9 ------- Run | Scr Mat Mat Sto Traps Triggered 2 | . 1 . 1 Indirectly . | . . . . Trap Hack Attempts . | . . . . Triggered . | . . . . Disarmed . | . . . . Reprogrammed . | . . . . Reused . | . . . . Traps Extracted . | . . . . Installed . | . . . . Triggered . | . . . . Machines | -11 -10 -9 -9 ---------- Run | Scr Mat Mat Sto Machines Disabled 3 | . . 2 1 Max in Single Turn 1 | . . 1 1 Machines Sabotaged . | . . . . Garrisons Compromised . | . . . . Overloaded Fab Kills . | . . . . Fab Network Shutdowns . | . . . . Hacking | -11 -10 -9 -9 --------- Run | Scr Mat Mat Sto Machines Accessed 2 | . 1 . 1 Terminals 1 | . . . 1 Fabricators . | . . . . Repair Stations . | . . . . Recycling Units 1 | . 1 . . Scanalyzers . | . . . . Garrison Access . | . . . . Total Hacks 6 | . 2 . 4 Successful 4 | . 2 . 2 Failed 2 | . . . 2 Catastrophic 2 | . . . 2 Database Lockouts . | . . . . Manual 3 | . . . 3 Terminals 4 | . . . 4 Fabricators . | . . . . Repair Stations . | . . . . Recycling Units 2 | . 2 . . Scanalyzers . | . . . . Garrison Access . | . . . . Terminal Hacks 2 | . . . 2 Record 2 | . . . 2 Fabricator Hacks . | . . . . Repair Station Hacks . | . . . . Recycling Unit Hacks 2 | . 2 . . Recycle Component 1 | . 1 . . Report Inventory 1 | . 1 . . Scanalyzer . | . . . . Garrison Access Hacks . | . . . . Unauthorized Hacks . | . . . . Terminals . | . . . . Fabricators . | . . . . Repair Stations . | . . . . Recycling Units . | . . . . Scanalyzers . | . . . . Garrison Access . | . . . . Data Cores Recovered . | . . . . Used . | . . . . Hacking Detections 2 | . 1 . 1 Full Trace Events 1 | . . . 1 Feedback Events . | . . . . Feedback Blocked . | . . . . Robot Schematics Acquired . | . . . . Robots Built . | . . . . Matter . | . . . . Time . | . . . . Total Robot Build Rating . | . . . . Part Schematics Acquired . | . . . . Parts Built . | . . . . Matter . | . . . . Time . | . . . . Total Part Build Rating . | . . . . Parts Repaired . | . . . . Time . | . . . . Parts Recycled 1 | . 1 . . Recycled Matter . | . . . . Retrieved Matter . | . . . . Retrieved Components . | . . . . Parts Scanalyzed . | . . . . Part Schematics Acquired . | . . . . Parts Damaged . | . . . . Bothacking | -11 -10 -9 -9 ------------ Run | Scr Mat Mat Sto Used RIF Installer . | . . . . Robots Hacked . | . . . . Non-combat . | . . . . Combat . | . . . . Robot Hacks Applied . | . . . . Relay Couplers Released . | . . . . Robots Rewired . | . . . . Allies Hacked . | . . . . Hacks Repelled . | . . . . Allies | -11 -10 -9 -9 -------- Run | Scr Mat Mat Sto Total Allies . | . . . . Largest Group . | . . . . Highest-Rated Group . | . . . . Highest-Rated Ally . | . . . . Total Orders . | . . . . Ally Attacks . | . . . . Total Damage . | . . . . Kills . | . . . . Allies Corrupted . | . . . . Allies Melted . | . . . . Intel | -11 -10 -9 -9 ------- Run | Scr Mat Mat Sto Robot Analysis Total . | . . . . Derelict Logs Recovered . | . . . . Drone Launches . | . . . . Drone Recoveries . | . . . . Exploration | -11 -10 -9 -9 ------------- Run | Scr Mat Mat Sto Turns Passed 1596 | 117 351 613 515 Spaces Moved 730 | 76 167 291 196 Core 36 | 31 . . 5 Treads 346 | . . 291 55 Legs 317 | 45 167 . 105 Wheels 31 | . . . 31 Hover . | . . . . Flight . | . . . . Fastest Speed 50 | 50 120 180 110 Average Speed 165 | 107 163 180 169 Slowest Speed 700 | 200 180 180 700 Overloaded Moves . | . . . . Propulsion Burnouts . | . . . . Robots Hopped . | . . . . Cave-ins Triggered . | . . . . Exploration Rate (%) 21 | 4 35 25 20 Regions Visited 3 Branch Regions 1 Pre-discovered Areas . | . . . . Known Exits Taken . | . . . . Unknown Exits Taken 3 | 1 1 1 . Scrap Searched . | . . . . Spaces Dug 24 | . . 10 14 Terrain Destroyed 183 | . 1 120 62 Melee . | . . . . Projectile 5 | . 1 . 4 AOE 178 | . . 120 58 Terrain Rammed . | . . . . Walls Destroyed . | . . . . Machines Disabled . | . . . . Actions | -11 -10 -9 -9 --------- Run | Scr Mat Mat Sto Total 952 | 111 201 346 294 Wait 21 | 18 . 3 . Move 727 | 75 166 290 196 Hop . | . . . . Pick Up 39 | 12 6 7 14 Fast Attach . | . . . . Attach 37 | 6 4 10 17 Detach 8 | . . 6 2 Swap . | . . . . Drop 2 | . . 1 1 Fire 110 | . 25 22 63 Melee . | . . . . Ram . | . . . . Kick 1 | . . . 1 Crush 7 | . . 7 . Escape Stasis . | . . . . Rewire . | . . . . Trap . | . . . . Miscellaneous . | . . . . Route ------- -11/Scrapyard -10/Materials -9/Materials -9/Storage History --------- Turn | Location | Event 41 | -11/Scrapyard | Discovered new exit (range 15) 118 | -11/Scrapyard | Entered Materials 231 | -10/Materials | Met 8R-AWN 314 | -10/Materials | Build established: Mutant 426 | -10/Materials | Lost 4 parts (1p3w) 442 | -10/Materials | Discovered new exit (range 16) 469 | -10/Materials | Entered another Materials area 469 | -9/Materials | Evolved 2 slots: Power x1, Propulsion x1 1038 | -9/Materials | Discovered new exit (range 11) 1082 | -9/Materials | Entered Storage 1122 | -9/Storage | Garrison activated, responded to threat 1250 | -9/Storage | Lost 3 parts (1p1n1w) 1438 | -9/Storage | Core integrity fell below 50% 1516 | -9/Storage | Core integrity fell below 20% 1554 | -9/Storage | Lost 14 parts (2p7n1u4w) 1581 | -9/Storage | Garrison activated, responded to threat 1597 | -9/Storage | Destroyed by S-10 Pest with Light Assault Rifle Last Messages --------------- 01553_ Acquired Mni. Assault Cannon. 01557_ K-01 Serf collects debris. 01559_ Acquired Mni. Assault Cannon. 01567_ W-16 Scout sends out distress signal. 01567_ M-13 Machinist fits Backup Laser I on G-34 Mercenary. 01572_ G-34 Mercenary destroyed. 01573_ U-05 Engineer lays Concrete. 01575_ O-16 Technician knocked back. 01578_ U-05 Engineer builds a Wall. 01579_ K-01 Serf collects debris. 01581_ Destroyed Sensor Array. 01581_ W-16 Scout calls for garrison support. 01581_ ALERT: Activating Garrison Access S001. 01581_ W-16 Scout destroyed. 01582_ R-06 Scavenger collects Hover Unit. 01583_ K-01 Serf collects debris. 01585_ U-05 Engineer builds a Wall. 01587_ K-01 Serf collects debris. 01587_ Com. Wheel destroyed. 01591_ K-01 Serf collects debris. Map ----- +----------------------------------------------------+ | ???????????????????????????????????????????? | | ???????????????????????????????????????????? | | ???????????????????????????????????????????? | | ???????????????????????????????????????????? | | ????????????????????????? ?????????????????? | | ?????????????????????#+##/?????????????????? | | ?????????????????????# ?????????????????? | | ?????????????????????# #????????###?????? | | ?????????????????##### #????????"" ?????? | | ?????????????????+ #????????Y" ?????? | | ?????????????????# T##??????? #????? | | ?????????????????? r###?????? #????? | | ??????????????????? #????? #????? | | ???????????????????? u +????]]? #????? | | ?????????????????????? #??? ]?? #????? | | ???????????????????????# u #?? ??? #????? | | ???????????????????????#u #########+###??? | | ???????????????????????# % #??? | | ??????????????????######u % #??? | | ??????????????????# #s%s %% #??? | | ??????????????????# + k ######### #??? | | ??????????????????# ^ # #?????#?# #??? | | ??????????????????###### #????? # #??? | | ???????????????????????#r m#????" # #??? | | ???????????????????????#u #??? G" # #??? | | ???????????????????????# @ #????" # #??? | | ???????????????????? + ??? # #??? | | ???????????????????#####+##k######### #??? | | ??????????????????????? #% % # #??? | | ??????????????????????? # # #??? | | ??????????????????????? # # #??? | | ???????????????????????#### !+ %##?? | | ????????????????????????### # ###? | | ????????????????????????# # # %# #? | | ?????????????????????????## ! # =# #? | | ??????????????????????????# # # #? | | ??????????????????????????########### # #? | | ??????????????????????????????????### ###? | | ????????????????????????????######### ###? | | ????????????????????????????#[[!!# # # ## | | ????????????????????????????#[[ !"=!# # # | | ????????????????????????????#[[* =+ # # | | ????????????????????????????# " !# # ## | | ????????????????????????????#] #*## ## # | | ????????????????????????????#]]] #### T ## | | ????????????????????????????######### ###? | | ???????????????????????????????????## #??? | | ????????????????????????????????????#####??? | | ???????????????????????????????????????????? | | ???????????????????????????????????????????? | +----------------------------------------------------+ Best States ------------- Heat Dissipation 28 Energy Generation 17 Energy Capacity 415 Matter Stores 300 Matter Capacity 300 Sight Range 16 Terrain Scan Density 10 Evasion (%) 50 Targeting Accuracy 6 Recoil Reduction 2 Item Schematics ----------------- None Robot Schematics ------------------ None Fabricated ------------ Nothing Alien Tech Used ----------------- None Achievements -------------- None Challenges ------------ None Game ------ Seed WeldingBehemothCompactor Manual? 0 Play Time 00:27:18 Cumulative 6.1 hours Start 2021.08.24 @ 17:27:20 End 2021.08.24 @ 18:02:44 Sessions 1 Manual Loads 0 Difficulty Rogue Special Mode None Game No. 17 Rogue 17 Adventurer 0 Explorer 0 Win Type - Total 0 Types 0/0/0/0/0/0/0/0/0 Lore% 3 Gallery% 12 Achievement% 8 Wizard Run 0 Options --------- ASCII 0 Keyboard 0 Movement Mouse Keybinds 0 Fullscreen 1 Font 18/X11Bold Map View 76x50 Tactical HUD 1 Map Filters NONE Filters NONE Steam 1 RUN: 1ebeabbc-7f15-4656-86a1-4f20bd887e66